bitfinex-derivatives/quotes_SOLF0:USTF0_20251126
["timestamp","ask_amount","ask_price","bid_price","bid_amount"]
[1764116135126,1.19,139.44,139.38,2.93]
[1764116135434,0.04733335,139.42,139.4,0.05422692]
[1764116135737,0.04733335,139.42,139.4,2.98422692]
[1764116137531,1.19,139.41,139.4,0.05422692]
[1764116140336,25.77,139.41,139.4,0.05422692]
[1764116143338,25.77,139.41,139.4,0.00422692]
[1764116151349,27.21,139.41,139.4,0.00422692]
[1764116152838,1.14,139.34,139.3,2.85]
[1764116153042,1.14,139.32,139.3,2.85]
[1764116153541,24.6,139.35,139.32,2.85]
[1764116153747,25.74,139.35,139.32,2.85]
[1764116154043,25.79150653,139.35,139.32,2.90072118]
[1764116154349,25.79150653,139.35,139.33,2.85]
[1764116154350,24.65150653,139.35,139.33,2.85]
[1764116154738,25.79150653,139.35,139.32,2.90072118]
[1764116155047,32.25310653,139.35,139.32,2.90072118]
[1764116156541,0.05150653,139.35,139.32,2.90072118]
[1764116159443,0.05150653,139.35,139.33,2.85]
[1764116159842,1.19150653,139.35,139.32,0.05072118]
[1764116160348,7.602,139.34,139.32,0.05072118]
[1764116160551,1.14,139.33,139.32,0.05072118]
[1764116161749,31.082,139.34,139.32,2.97072118]
[1764116162640,24.62,139.34,139.32,2.97072118]
[1764116164251,1.19150653,139.35,139.32,2.97072118]
[1764116165352,7.65310653,139.35,139.32,2.97072118]
[1764116166950,0.05150653,139.35,139.32,2.97072118]
[1764116168152,0.05150653,139.35,139.33,2.92]
[1764116169353,0.05150653,139.35,139.33,9.382]
[1764116169553,0.05150653,139.35,139.34,2.92]
[1764116172654,1.19,139.41,139.35,2.92]
[1764116173552,0.04597326,139.39,139.37,2.97500134]
[1764116176258,1.23597326,139.39,139.37,2.97500134]
[1764116176450,0.04597326,139.39,139.37,2.97500134]
[1764116176757,1.23597326,139.39,139.37,2.97500134]
[1764116177266,1.23597326,139.39,139.37,0.05500134]
[1764116178258,6.4602,139.38,139.37,0.05500134]
[1764116178861,1.18,139.42,139.37,3.00500134]
[1764116179059,1.18,139.45,139.37,3.00500134]
[1764116179256,1.18,139.45,139.37,2.95]
[1764116179561,1.18,139.45,139.39,2.95]
[1764116179955,1.18,139.45,139.41,0.04564388]
[1764116180156,1.18,139.45,139.41,2.99564388]
[1764116180351,6.4579,139.43,139.41,2.99564388]
[1764116182765,1.18,139.45,139.41,2.99564388]
[1764116183260,6.4579,139.43,139.41,2.99564388]
[1764116184664,1.18,139.45,139.41,2.99564388]
[1764116185161,6.4583,139.42,139.41,0.04564388]
[1764116186266,7.6383,139.42,139.41,0.04564388]
[1764116186768,6.4583,139.42,139.41,0.04564388]
[1764116187266,6.4583,139.42,139.41,2.99564388]
[1764116187764,6.4577,139.44,139.41,2.99564388]
[1764116187964,1.18,139.45,139.41,2.99564388]
[1764116188166,6.4579,139.43,139.41,0.04564388]
[1764116188367,6.4579,139.43,139.41,2.99564388]
[1764116189162,25.8,139.46,139.41,2.99564388]
[1764116190263,6.457,139.45,139.42,2.95]
[1764116192167,1.18,139.51,139.44,2.95]
[1764116192375,1.18,139.51,139.47,2.95]
[1764116192663,107.03488098,139.57,139.46,0.04675531]
[1764116192664,6.4532,139.53,139.49,2.95]
[1764116192869,1.18,139.57,139.51,2.95]
[1764116193057,25.8,139.57,139.51,2.95]
[1764116193456,32.2518,139.57,139.51,2.95]
[1764116193669,25.8,139.57,139.51,2.95]
[1764116194163,1.18,139.55,139.51,2.95]
[1764116194367,7.6319,139.56,139.51,2.95]
[1764116195264,6.4524,139.55,139.51,2.95]
[1764116195773,1.18,139.56,139.51,2.95]
[1764116195957,101.5239,139.59,139.51,2.95]
[1764116196164,1.18,139.58,139.54,3.00188514]
[1764116196662,7.6315,139.57,139.54,3.00188514]
[1764116196863,25.8,139.59,139.54,3.00188514]
[1764116197062,32.2508,139.59,139.54,3.00188514]
[1764116197264,7.6308,139.59,139.54,3.00188514]
[1764116197463,1.18,139.58,139.54,3.00188514]
[1764116198067,7.6311,139.58,139.54,3.00188514]
[1764116198262,1.18,139.58,139.54,3.00188514]
[1764116198671,32.2498,139.61,139.54,3.00188514]
[1764116199561,7.6301,139.6,139.55,2.95]
[1764116200772,6.4501,139.6,139.55,2.95]
[1764116201072,7.6289,139.63,139.56,2.95]
[1764116201263,7.6289,139.63,139.59,2.95]
[1764116201668,1.18,139.62,139.59,2.95]
[1764116201874,7.6293,139.62,139.59,2.95]
[1764116202073,1.18,139.61,139.58,0.04872792]
[1764116203374,7.6302,139.6,139.58,0.04872792]
[1764116206176,1.18,139.61,139.58,2.99872792]
[1764116208683,7.6297,139.61,139.58,2.99872792]
[1764116209472,1.18,139.6,139.58,0.04872792]
[1764116209672,7.6301,139.6,139.58,0.04872792]
[1764116210964,1.18,139.59,139.58,0.04872792]
[1764116211171,1.18,139.62,139.58,3.13872792]
[1764116211379,1.18,139.61,139.58,3.13872792]
[1764116212280,7.6296,139.61,139.58,3.13872792]
[1764116212577,1.18,139.6,139.58,3.13872792]
[1764116212978,7.6301,139.6,139.58,0.04872792]
[1764116213782,1.18,139.59,139.58,0.04872792]
[1764116214276,6.4501,139.6,139.58,0.04872792]
[1764116214473,7.6301,139.6,139.58,0.04872792]
[1764116217175,1.18,139.59,139.58,0.04872792]
[1764116220973,7.6304,139.59,139.58,0.04872792]
[1764116225287,1.18,139.55,139.49,2.9]
[1764116226381,0.04833197,139.53,139.52,2.9]
[1764116227388,1.18,139.52,139.51,0.05035203]
[1764116228589,7.68173197,139.53,139.51,0.05035203]
[1764116229091,1.18,139.52,139.51,0.05035203]
[1764116229584,6.50173197,139.53,139.48,2.9]
[1764116229585,6.4542,139.51,139.48,2.9]
[1764116229893,1.18,139.5,139.45,2.9]
[1764116230089,102.71326078,139.53,139.47,2.9]
[1764116230090,6.4533,139.53,139.47,2.9]
[1764116230287,1.18,139.52,139.47,2.9]
[1764116230581,1.18,139.5,139.48,0.04903275]
[1764116230777,0.04840862,139.51,139.48,2.94903275]
[1764116231186,0.04840862,139.51,139.49,2.9]
[1764116232087,0.04840862,139.51,139.5,2.9]
[1764116232489,1.18,139.55,139.52,2.9]
[1764116232691,1.18,139.56,139.52,2.9]
[1764116233491,1.22797244,139.55,139.53,0.04855903]
[1764116235084,0.04797244,139.55,139.53,2.94855903]
[1764116235282,3.45692881,139.6,139.54,2.9]
[1764116235692,1.18,139.6,139.54,2.9]
[1764116235896,1.18,139.6,139.57,9.3512]
[1764116236286,1.18,139.6,139.57,9.39837457]
[1764116237383,3.45692881,139.6,139.57,0.04717457]
[1764116237584,3.45692881,139.6,139.52,8.92231554]
[1764116237585,1.13,139.57,139.52,6.65345833]
[1764116237786,1.13,139.57,139.49,6.65345833]
[1764116237787,1.13,139.53,139.49,6.65345833]
[1764116237990,2.27692881,139.52,139.47,9.50345833]
[1764116238300,1.13,139.51,139.47,9.50345833]
[1764116238596,1.13,139.51,139.47,2.85]
[1764116238903,0.05401958,139.5,139.48,2.89673579]
[1764116239796,1.18401958,139.5,139.48,0.04673579]
[1764116240197,0.05401958,139.5,139.48,2.89673579]
[1764116240496,0.05401958,139.5,139.49,2.85]
[1764116242395,1.13,139.54,139.5,2.85]
[1764116242897,1.13,139.53,139.5,2.85]
[1764116244092,7.5834,139.53,139.5,2.85]
[1764116244384,1.13,139.57,139.5,2.85]
[1764116244590,1.13,139.59,139.53,2.85]
[1764116244794,7.581,139.58,139.53,2.85]
[1764116244996,7.581,139.58,139.54,2.90051487]
[1764116245393,6.4503,139.6,139.54,2.90051487]
[1764116246496,1.13,139.59,139.56,2.85]
[1764116247087,1.13,139.59,139.55,9.3022]
[1764116247293,7.5806,139.59,139.55,2.85]
[1764116247802,1.13,139.58,139.54,0.05051487]
[1764116249405,7.5815,139.57,139.54,0.05051487]
[1764116250601,6.4507,139.59,139.54,2.90051487]
[1764116250905,7.5807,139.59,139.54,2.90051487]
[1764116251108,7.581,139.58,139.54,2.90051487]
[1764116252305,7.5815,139.57,139.54,2.90051487]
[1764116252598,1.13,139.6,139.54,2.90051487]
[1764116253900,6.451,139.58,139.54,2.90051487]
[1764116254098,1.13,139.58,139.54,2.90051487]
[1764116254690,1.13,139.55,139.54,0.05051487]
[1764116254996,6.452,139.56,139.54,0.05051487]
[1764116256899,1.13,139.55,139.54,0.05051487]
[1764116257405,1.13,139.53,139.49,9.50345833]
[1764116258201,6.4537,139.52,139.49,9.50345833]
[1764116258398,0.04860542,139.52,139.5,2.85]
[1764116258706,0.04860542,139.52,139.51,9.50345833]
[1764116259902,0.04860542,139.52,139.51,2.85]
[1764116260808,0.04860542,139.52,139.51,9.50345833]
[1764116261609,1.13,139.56,139.53,2.85]
[1764116262306,7.5818,139.56,139.53,2.85]
[1764116262503,7.5818,139.56,139.53,2.9020685]
[1764116264008,1.13,139.56,139.53,9.3551685]
[1764116267204,6.4514,139.57,139.54,2.85]
[1764116267406,32.1807,139.59,139.55,3.09]
[1764116267610,3.55940086,139.61,139.55,3.09]
[1764116267611,25.71,139.61,139.55,3.09]
[1764116267903,1.13,139.6,139.57,3.13838232]
[1764116268103,24.58,139.61,139.57,3.13838232]
[1764116268308,1.13,139.61,139.57,3.13838232]
[1764116269313,7.5799,139.61,139.57,9.58968232]
[1764116269498,1.13,139.6,139.57,9.58968232]
[1764116269997,24.6,139.63,139.57,9.58968232]
[1764116269998,1.13,139.58,139.57,0.04838232]
[1764116270912,7.5809,139.58,139.57,0.04838232]
[1764116277518,32.1609,139.58,139.57,0.04838232]
[1764116280320,1.13,139.55,139.52,3.09]
[1764116281020,1.13,139.55,139.53,2.92]
[1764116281220,1.18474131,139.55,139.53,2.96828901]
[1764116287229,7.63704131,139.55,139.53,2.96828901]
[1764116288326,7.5827,139.54,139.53,0.04828901]
[1764116288930,1.13,139.52,139.49,9.57345833]
[1764116289131,1.13,139.52,139.5,2.92]
[1764116289833,6.4541,139.51,139.5,2.96918742]
[1764116290332,6.4541,139.51,139.5,0.04918742]
[1764116292238,1.13,139.51,139.5,0.04918742]
[1764116293328,7.5841,139.51,139.5,0.04918742]
[1764116295331,0.05342703,139.52,139.5,2.96918742]
[1764116296337,7.63712703,139.52,139.5,0.04918742]
[1764116296733,1.13,139.51,139.5,0.04918742]
[1764116297435,6.50712703,139.52,139.5,0.04918742]
[1764116297635,7.63712703,139.52,139.5,0.04918742]
[1764116297836,7.5841,139.51,139.5,0.04918742]
[1764116301241,1.13,139.51,139.5,0.04918742]
[1764116304043,6.50712703,139.52,139.5,2.99918742]
[1764116304044,0.05342703,139.52,139.5,2.99918742]
[1764116304743,0.05342703,139.52,139.51,2.95]
[1764116305045,1.18342703,139.52,139.5,0.04918742]
[1764116306946,1.18342703,139.52,139.5,2.99918742]
[1764116307141,0.05342703,139.52,139.5,2.99918742]
[1764116307537,0.05342703,139.52,139.51,9.4041]
[1764116308145,0.05342703,139.52,139.51,2.95]
[1764116309946,0.05342703,139.52,139.51,9.4041]
[1764116316048,0.05342703,139.52,139.51,2.95]
[1764116316851,1.18342703,139.52,139.5,2.99918742]
[1764116317451,0.05342703,139.52,139.5,2.99918742]
[1764116319449,7.63712703,139.52,139.5,2.99918742]
[1764116321551,0.05342703,139.52,139.5,2.99918742]
[1764116322153,0.05342703,139.52,139.51,2.95]
[1764116326154,128.49300086,139.58,139.52,2.95]
[1764116326155,1.13,139.58,139.52,2.95]
[1764116326654,3.55940086,139.6,139.55,2.95]
[1764116326855,1.18,139.61,139.55,2.95]
[1764116327259,0.0498284,139.59,139.58,2.95]
[1764116332063,1.2398284,139.59,139.57,0.05129924]
[1764116332262,1.19,139.58,139.57,0.05129924]
[1764116334360,7.6903284,139.59,139.57,2.99129924]
[1764116335467,1.2398284,139.59,139.57,2.99129924]
[1764116335665,0.0498284,139.59,139.57,2.99129924]
[1764116336765,1.2398284,139.59,139.57,2.99129924]
[1764116340366,0.0498284,139.59,139.58,2.97]
[1764116347674,0.0498284,139.59,139.58,9.4209]
[1764116348086,0.0498284,139.59,139.58,2.97]
[1764116351287,1.18,139.62,139.58,9.4207]
[1764116351590,25.80670858,139.65,139.59,2.97]
[1764116351591,2.27693844,139.63,139.59,2.97]
[1764116352387,3.45693844,139.63,139.6,3.01883892]
[1764116353594,2.27693844,139.63,139.6,3.01883892]
[1764116354493,1.18,139.67,139.63,2.97]
[1764116354685,1.18,139.67,139.64,3.02482951]
[1764116354883,3.45693844,139.67,139.64,3.02482951]
[1764116355798,1.18,139.66,139.64,0.05482951]
[1764116355995,3.45693844,139.65,139.64,0.05482951]
[1764116358895,1.18,139.65,139.64,0.05482951]
[1764116359396,8.72413844,139.66,139.64,3.12482951]
[1764116359598,1.19,139.68,139.64,3.12482951]
[1764116359599,34.47353844,139.68,139.64,3.12482951]
[1764116359899,1.19,139.67,139.64,3.12482951]
[1764116361300,7.6367,139.67,139.64,3.12482951]
[1764116363692,7.6357,139.7,139.65,3.07]
[1764116364997,6.4457,139.7,139.65,3.07]
[1764116365205,7.6349,139.72,139.67,3.07]
[1764116365503,7.6349,139.72,139.69,3.07]
[1764116365703,1.19,139.72,139.69,3.07]
[1764116366199,1.19,139.71,139.69,3.07]
[1764116367204,7.6349,139.71,139.69,3.07]
[1764116368395,6.4449,139.71,139.69,3.07]
[1764116369504,7.6349,139.71,139.69,3.07]
[1764116369897,24.56,139.73,139.69,3.07]
[1764116370205,32.1944,139.73,139.69,3.07]
[1764116372105,31.0044,139.73,139.69,3.07]
[1764116372493,6.4444,139.73,139.69,3.07]
[1764116372698,1.19,139.73,139.69,3.07]
[1764116374309,7.6349,139.71,139.69,3.07]
[1764116374508,1.19,139.69,139.68,0.04794076]
[1764116375496,33.26263844,139.7,139.68,3.11794076]
[1764116375497,6.4457,139.7,139.68,3.11794076]
[1764116375702,30.9857,139.7,139.68,3.11794076]
[1764116375898,1.19,139.69,139.68,0.04794076]
[1764116378011,32.1957,139.7,139.68,0.04794076]
[1764116378209,1.19,139.75,139.68,3.11794076]
[1764116378520,1.19,139.75,139.69,3.07]
[1764116378815,6.4434,139.75,139.7,3.07]
[1764116379013,6.4434,139.75,139.72,3.07]
[1764116379311,29.2726652,139.77,139.72,3.07]
[1764116379312,1.19,139.76,139.72,3.07]
[1764116380204,24.56,139.77,139.72,3.07]
[1764116380405,1.19,139.79,139.72,3.07]
[1764116380606,24.56,139.81,139.73,3.07]
[1764116380900,25.75,139.81,139.75,3.07]
[1764116381100,1.19,139.79,139.74,3.11550586]
[1764116381318,7.6327,139.76,139.74,0.04550586]
[1764116381814,2.27693844,139.78,139.74,3.11550586]
[1764116381815,7.632,139.78,139.74,3.11550586]
[1764116383416,1.19,139.77,139.74,0.04550586]
[1764116384715,1.19,139.75,139.74,0.04550586]
[1764116387514,25.75,139.75,139.74,0.04550586]
[1764116389217,32.1929,139.76,139.74,0.04550586]
[1764116389416,3.55067432,139.78,139.74,3.13550586]
[1764116389417,7.6319,139.78,139.74,3.13550586]
[1764116389616,32.1919,139.78,139.74,3.13550586]
[1764116389809,1.19,139.77,139.74,3.13550586]
[1764116390411,1.19,139.76,139.74,3.13550586]
[1764116390610,7.6323,139.77,139.74,3.13550586]
[1764116390818,1.19,139.76,139.74,3.13550586]
[1764116391617,7.6327,139.76,139.74,3.13550586]
[1764116392616,7.6327,139.76,139.74,0.04550586]
[1764116392820,1.19,139.75,139.74,0.04550586]
[1764116398216,6.4427,139.76,139.74,0.04550586]
[1764116398421,6.4427,139.76,139.74,3.13550586]
[1764116399315,32.1921,139.78,139.74,3.13550586]
[1764116399514,1.19,139.77,139.74,3.13550586]
[1764116400518,24.56,139.78,139.74,3.13550586]
[1764116400728,7.6103,139.82,139.77,2.82]
[1764116400915,7.6103,139.82,139.78,0.05140486]
[1764116400916,1.17,139.81,139.78,0.05140486]
[1764116401430,1.12,139.75,139.67,6.60480248]
[1764116401721,1.12,139.71,139.66,2.82]
[1764116401916,1.12,139.69,139.66,2.82]
[1764116402317,1.12,139.69,139.66,2.86980443]
[1764116402318,1.17180798,139.69,139.66,2.86980443]
[1764116402723,1.17180798,139.69,139.66,0.04980443]
[1764116404024,7.5682,139.64,139.61,2.82]
[1764116404218,1.12,139.64,139.61,2.82]
[1764116404620,7.5688,139.63,139.59,9.46370111]
[1764116405020,0.05151964,139.62,139.6,2.86977402]
[1764116406628,1.12,139.61,139.6,0.04977402]
[1764116406833,7.62091964,139.62,139.6,0.04977402]
[1764116407024,0.05151964,139.62,139.6,2.86977402]
[1764116416346,6.6571047,139.73,139.6,2.86977402]
[1764116416531,1.17,139.71,139.65,2.82]
[1764116416729,6.4437,139.74,139.65,2.82]
[1764116417031,32.2337,139.74,139.67,2.82]
[1764116417431,32.2337,139.74,139.7,3.12]
[1764116417432,0.05009277,139.72,139.7,3.12]
[1764116420242,1.24009277,139.72,139.69,0.04651977]
[1764116420744,1.24009277,139.72,139.69,3.16651977]
[1764116422238,0.05009277,139.72,139.69,3.16651977]
[1764116422441,6.6571047,139.83,139.7,9.43685253]
[1764116422744,17.82710151,139.9,139.7,9.43685253]
[1764116422745,1.24,139.89,139.8,3.12]
[1764116423935,1.24,139.89,139.83,0.05452377]
[1764116424448,1.24,139.84,139.83,0.05452377]
[1764116424641,1.18,139.83,139.76,3.12]
[1764116425031,24.64,139.84,139.76,3.12]
[1764116425032,1.18,139.86,139.76,3.12]
[1764116425642,0.05106936,139.82,139.8,3.16812226]
[1764116426441,107.7444,139.89,139.8,3.16812226]
[1764116426645,107.7444,139.89,139.8,3.12]
[1764116427039,1.18,139.86,139.8,3.12]
[1764116427250,1.18,139.84,139.8,3.12]
[1764116427447,1.18,139.83,139.81,0.05071569]
[1764116427744,1.18,139.83,139.81,0.05045851]
[1764116428145,7.6193,139.84,139.81,0.05045851]
[1764116428447,25.84,139.85,139.81,3.17045851]
[1764116428945,1.18,139.85,139.81,0.05045851]
[1764116429150,1.18,139.83,139.81,0.05045851]
[1764116430044,7.6197,139.83,139.81,0.05045851]
[1764116431147,1.18,139.82,139.81,0.05045851]
[1764116432749,7.6186,139.85,139.81,3.17045851]
[1764116432953,32.2786,139.85,139.81,3.17045851]
[1764116433154,1.18,139.84,139.81,0.05045851]
[1764116433356,7.6196,139.83,139.81,0.05045851]
[1764116433654,1.18,139.82,139.75,3.12]
[1764116433853,1.18,139.85,139.75,3.12]
[1764116434052,24.66,139.84,139.75,3.12]
[1764116434250,6.4396,139.83,139.75,3.12]
[1764116434447,1.18,139.83,139.75,3.12]
[1764116434759,0.04592193,139.8,139.78,0.05262879]
[1764116435058,1.22592193,139.8,139.78,0.05262879]
[1764116435649,7.66692193,139.8,139.78,0.05262879]
[1764116435855,25.84,139.79,139.78,0.05262879]
[1764116436446,6.4422,139.77,139.72,3.12]
[1764116437049,7.6222,139.77,139.72,3.12]
[1764116437452,0.05420846,139.76,139.73,3.17365056]
[1764116437647,1.23420846,139.76,139.73,0.05365056]
[1764116437853,1.18,139.75,139.73,0.05365056]
[1764116438253,7.6233,139.75,139.73,0.05365056]
[1764116438454,1.18,139.74,139.73,0.05365056]
[1764116438861,25.84,139.74,139.73,0.05365056]
[1764116439258,6.4442,139.73,139.67,9.5666]
[1764116439662,6.4442,139.73,139.67,3.12]
[1764116440164,0.04813401,139.71,139.69,0.05363384]
[1764116440460,1.22813401,139.71,139.69,0.05363384]
[1764116441453,0.04813401,139.71,139.69,3.17363384]
[1764116443254,0.04813401,139.71,139.69,0.05363384]
[1764116443459,1.22813401,139.71,139.69,0.05363384]
[1764116443673,0.04813401,139.71,139.69,0.05363384]
[1764116444163,6.49333401,139.71,139.69,0.05363384]
[1764116444371,0.04813401,139.71,139.69,3.17363384]
[1764116446254,1.22813401,139.71,139.69,0.05363384]
[1764116449283,6.49313401,139.71,139.69,0.05363384]
[1764116449478,0.04813401,139.71,139.69,3.11363384]
[1764116451378,6.49313401,139.71,139.69,3.11363384]
[1764116452887,6.49313401,139.71,139.69,0.05363384]
[1764116455476,7.68313401,139.71,139.69,0.05363384]
[1764116455781,1.19,139.69,139.63,3.06]
[1764116456087,1.19,139.66,139.6,3.06]
[1764116456285,6.4488,139.63,139.6,3.06]
[1764116456492,1.19,139.63,139.56,3.06]
[1764116456674,0.05225915,139.61,139.58,3.10879651]
[1764116457489,0.05225915,139.61,139.58,9.55959651]
[1764116457678,0.05225915,139.61,139.59,3.06]
[1764116458787,0.05225915,139.61,139.58,6.49959651]
[1764116458788,7.69185915,139.61,139.58,0.04879651]
[1764116458982,0.05225915,139.61,139.58,3.10879651]
[1764116459990,1.19,139.6,139.58,0.04879651]
[1764116460582,0.05225915,139.61,139.58,3.08879651]
[1764116461995,0.05225915,139.61,139.6,3.04]
[1764116462386,0.05225915,139.61,139.59,3.04]
[1764116466393,0.05225915,139.61,139.59,9.4903]
[1764116466780,0.05225915,139.61,139.59,3.04]
[1764116467586,0.05225915,139.61,139.58,0.04879651]
[1764116467587,1.23225915,139.61,139.58,0.04879651]
[1764116468888,7.6301,139.6,139.58,0.04879651]
[1764116469095,1.18,139.59,139.58,0.04879651]
[1764116470895,1.18,139.59,139.54,3.04]
[1764116470896,1.18,139.58,139.51,3.04]
[1764116471302,1.18,139.57,139.51,3.04]
[1764116471901,6.507289,139.55,139.53,0.04660922]
[1764116472707,7.687289,139.55,139.53,0.04660922]
[1764116473298,1.18,139.54,139.53,0.04660922]
[1764116473614,1.18,139.53,139.48,3.04]
[1764116474410,0.05094436,139.52,139.49,3.08689086]
[1764116474907,0.00094436,139.52,139.49,3.08689086]
[1764116475203,1.18,139.57,139.49,3.08689086]
[1764116475608,6.4519,139.56,139.51,6.4541]
[1764116475902,6.4519,139.56,139.52,3.04]
[1764116476305,6.4519,139.56,139.51,6.4541]
[1764116476306,0.04824095,139.55,139.53,3.09418565]
[1764116477399,6.50064095,139.55,139.53,3.09418565]
[1764116477902,1.24,139.54,139.53,0.05418565]
[1764116478103,7.74064095,139.55,139.53,0.05418565]
[1764116478604,1.24,139.54,139.53,0.05418565]
[1764116482006,6.50064095,139.55,139.53,0.05418565]
[1764116482305,31.20064095,139.55,139.53,0.05418565]
[1764116482505,1.24,139.54,139.53,0.05418565]
[1764116484409,32.44064095,139.55,139.53,0.05418565]
[1764116485708,1.24,139.54,139.53,0.05418565]
[1764116486010,32.44064095,139.55,139.53,0.05418565]
[1764116486514,0.04824095,139.55,139.53,3.10418565]
[1764116487411,7.74064095,139.55,139.53,0.05418565]
[1764116487719,6.50064095,139.55,139.53,0.05418565]
[1764116488104,6.4527,139.54,139.53,0.05418565]
[1764116489520,0.04824095,139.55,139.53,0.05418565]
[1764116489715,0.04824095,139.55,139.53,3.10418565]
[1764116489905,6.4527,139.54,139.53,3.10418565]
[1764116490217,6.4527,139.54,139.53,0.05418565]
[1764116493920,7.6927,139.54,139.53,0.05418565]
[1764116495824,6.50054095,139.55,139.53,0.05418565]
[1764116496124,6.50054095,139.55,139.53,3.10418565]
[1764116498125,6.50054095,139.55,139.53,0.05418565]
[1764116500121,0.04824095,139.55,139.53,0.05418565]
[1764116501322,6.50054095,139.55,139.53,0.05418565]
[1764116501626,6.50054095,139.55,139.53,3.10418565]
[1764116504218,100.3427,139.59,139.53,3.10418565]
[1764116504219,1.24,139.6,139.53,3.10418565]
[1764116504412,1.24,139.6,139.54,3.05]
[1764116505023,7.6904,139.6,139.57,3.05]
[1764116505224,7.73697857,139.6,139.57,3.09761001]
[1764116505823,1.28657857,139.6,139.57,9.54891001]
[1764116506326,0.04657857,139.6,139.58,9.5009]
[1764116506522,0.04657857,139.6,139.59,3.05]
[1764116508130,1.28657857,139.6,139.57,0.04761001]
[1764116508424,1.28657857,139.6,139.57,3.05761001]
[1764116509922,7.73667857,139.6,139.57,3.05761001]
[1764116511230,1.28657857,139.6,139.57,3.05761001]
[1764116512320,7.73657857,139.6,139.57,3.05761001]
[1764116513425,0.04657857,139.6,139.57,9.50901001]
[1764116513626,0.04657857,139.6,139.58,3.01]
[1764116514025,0.04657857,139.6,139.58,9.4609]
[1764116514226,0.04657857,139.6,139.59,3.01]
[1764116515125,0.04657857,139.6,139.59,9.4604]
[1764116515528,0.04657857,139.6,139.59,3.01]
[1764116516123,0.04657857,139.6,139.59,9.4604]
[1764116518030,25.92,139.64,139.57,0.04761001]
[1764116518031,31.1285,139.64,139.61,3.01]
[1764116518245,25.92,139.64,139.61,3.01]
[1764116518534,1.24,139.63,139.61,3.01]
[1764116519127,1.29204896,139.63,139.61,3.06243437]
[1764116519335,7.74064896,139.63,139.61,3.06243437]
[1764116520136,0.05204896,139.63,139.61,3.06243437]
[1764116520527,6.50064896,139.63,139.61,3.06243437]
[1764116521536,7.74064896,139.63,139.61,0.05243437]
[1764116521736,6.449,139.62,139.61,0.05243437]
[1764116521937,0.05204896,139.63,139.61,3.08243437]
[1764116522235,1.29204896,139.63,139.61,0.05243437]
[1764116523128,1.29204896,139.63,139.61,3.08243437]
[1764116523129,0.05204896,139.63,139.61,3.08243437]
[1764116523841,0.05204896,139.63,139.62,3.03]
[1764116524143,1.24,139.69,139.62,3.03]
[1764116524144,25.9,139.69,139.62,3.03]
[1764116524738,1.24,139.7,139.65,3.03]
[1764116524925,0.05035865,139.69,139.66,3.08511314]
[1764116526039,7.73625865,139.69,139.66,3.08511314]
[1764116526829,7.6864,139.68,139.66,0.05511314]
[1764116527339,0.05035865,139.69,139.66,3.08511314]
[1764116527839,0.05035865,139.69,139.68,3.03]
[1764116528134,24.66,139.74,139.68,3.03]
[1764116528641,7.6841,139.73,139.69,3.03]
[1764116528935,1.24,139.73,139.69,3.03]
[1764116529135,24.66,139.74,139.7,0.05149961]
[1764116529136,1.28618542,139.72,139.7,0.05149961]
[1764116529336,0.04618542,139.72,139.7,3.08149961]
[1764116530038,0.04618542,139.72,139.7,0.05149961]
[1764116530931,0.04618542,139.72,139.7,3.08149961]
[1764116533636,1.28618542,139.72,139.7,0.05149961]
[1764116533938,1.24,139.7,139.66,5.28]
[1764116534125,1.24,139.69,139.66,5.28]
[1764116534731,1.24,139.69,139.66,8.3648779]
[1764116534937,1.28818477,139.69,139.66,8.3648779]
[1764116535134,0.04818477,139.69,139.67,3.03]
[1764116536040,0.04818477,139.69,139.66,8.3648779]
[1764116536440,1.28818477,139.69,139.66,8.3648779]